{"text_format":"3","workbook":"xlsx","n_sheets":4,"sheets":["Projecttracker","Gantt-diagram","Over","Dyn. grafiekgegevens verborgen"],"not_rendered":{"charts":1,"defined_names":8},"read":"whole","date_system":"1900"}

{"sheet":"Projecttracker","index":0,"n_rows":22,"n_cols":7,"rows_kept":22}
["Maak een projecttracker in dit werkblad.\nDe titel van dit werkblad staat in cel B1. \nInformatie over hoe u dit werkblad gebruikt, waaronder instructies voor schermlezers, staat in het werkblad Over.","Projecttracker"]
["De Begindatum kan handmatig worden ingevoerd in cel D2, of u kunt de voorbeeldformule van de sjabloon gebruiken om de kleinste datumwaarde te vinden in de kolom Mijlpaal in de onderstaande tabel Mijlpaal.",null,"Begindatum:",{"$f":"IFERROR(IF(MIN(Mijlpalen[Begindatum])=0,TODAY(),MIN(Mijlpalen[Begindatum])),TODAY())","v":"2018-07-17"}]
["De Einddatum kan handmatig worden ingevoerd in cel D3, of u kunt de voorbeeldformule van de sjabloon gebruiken om de grootste datumwaarde te vinden in de kolom Mijlpaal in de onderstaande tabel Mijlpaal.",null,"Einddatum:",{"$f":"IFERROR(IF(MAX(Mijlpalen[Einddatum])=0,TODAY(),MAX(Mijlpalen[Einddatum])),TODAY())","v":"2019-02-12"}]
["Informatie over de kolommen van de tabel Mijlpaal staat in de cellen B4 t/m G4.","Voer in de onderstaande kolom een opeenvolgende reeks getallen in.","Voer in de onderstaande kolom de begindatum voor de mijlpaal of activiteit in.","Voer in de onderstaande kolom de einddatum voor de mijlpaal of activiteit in.","Voer in de onderstaande kolom de beschrijving van de mijlpaal en/of activiteit in. Deze beschrijving verschijnt in het projectdiagram.","Automatisch berekend. De onderstaande gegevens, onder deze kolom, worden gebruikt om de mijlpalen en activiteiten op de grafiek te plaatsen.","Automatisch berekend. Duur van elke taak "]
["Tabelkoppen staan in de cellen B5 t/m G5. \nEr zijn twee verborgen kolommen: De kolommen Begint op dag en Taakduur in de cellen F5 en G5 worden automatisch berekend en worden gebruikt om het Gantt-diagram in het werkblad Gantt-diagram te maken. \nVoorbeeldgegevens staan in de cellen B6 t/m E21. \nDe volgende aanwijzing staat in cel A22.","Positie","Begindatum","Einddatum","Mijlpaal/Activiteit","Begint op dag","Taakduur"]
[null,1,{"$f":"TODAY()-10","v":"2018-08-06"},{"$f":"Mijlpalen[[#This Row],[Begindatum]]+10","v":"2018-08-16"},"Begin",{"$f":"IFERROR(IF(OR(LEN(Mijlpalen[[#This Row],[Begindatum]])=0,LEN(Mijlpalen[[#This Row],[Einddatum]])=0),\"\",INT(C6)-INT($C$6)),\"\")","v":0},{"$f":"IFERROR(IF(Mijlpalen[[#This Row],[Begint op dag]]=0,DATEDIF(Mijlpalen[[#This Row],[Begindatum]],Mijlpalen[[#This Row],[Einddatum]],\"d\")+1,IF(LEN(Mijlpalen[[#This Row],[Begint op dag]])=0,\"\",DATEDIF(Mijlpalen[[#This Row],[Begindatum]],Mijlpalen[[#This Row],[Einddatum]],\"d\")+1)),0)","v":11}]
[null,2,{"$f":"TODAY()+5","v":"2018-08-21"},{"$f":"Mijlpalen[[#This Row],[Begindatum]]+15","v":"2018-09-05"},{"$f":"\"Activiteit\"&\" \"&ROW($A2)","v":"Activiteit 2"},{"$f":"IFERROR(IF(OR(LEN(Mijlpalen[[#This Row],[Begindatum]])=0,LEN(Mijlpalen[[#This Row],[Einddatum]])=0),\"\",INT(C7)-INT($C$6)),\"\")","v":15},{"$f":"IFERROR(IF(Mijlpalen[[#This Row],[Begint op dag]]=0,DATEDIF(Mijlpalen[[#This Row],[Begindatum]],Mijlpalen[[#This Row],[Einddatum]],\"d\")+1,IF(LEN(Mijlpalen[[#This Row],[Begint op dag]])=0,\"\",DATEDIF(Mijlpalen[[#This Row],[Begindatum]],Mijlpalen[[#This Row],[Einddatum]],\"d\")+1)),0)","v":16}]
[null,3,{"$f":"TODAY()-30","v":"2018-07-17"},{"$f":"Mijlpalen[[#This Row],[Begindatum]]+152","v":"2018-12-16"},"Activiteit 3",{"$f":"IFERROR(IF(OR(LEN(Mijlpalen[[#This Row],[Begindatum]])=0,LEN(Mijlpalen[[#This Row],[Einddatum]])=0),\"\",INT(C8)-INT($C$6)),\"\")","v":{"v":-20,"d":"-20 "}},{"$f":"IFERROR(IF(Mijlpalen[[#This Row],[Begint op dag]]=0,DATEDIF(Mijlpalen[[#This Row],[Begindatum]],Mijlpalen[[#This Row],[Einddatum]],\"d\")+1,IF(LEN(Mijlpalen[[#This Row],[Begint op dag]])=0,\"\",DATEDIF(Mijlpalen[[#This Row],[Begindatum]],Mijlpalen[[#This Row],[Einddatum]],\"d\")+1)),0)","v":153}]
[null,4,{"$f":"TODAY()+2","v":"2018-08-18"},{"$f":"Mijlpalen[[#This Row],[Begindatum]]+150","v":"2019-01-15"},"Activiteit 4",{"$f":"IFERROR(IF(OR(LEN(Mijlpalen[[#This Row],[Begindatum]])=0,LEN(Mijlpalen[[#This Row],[Einddatum]])=0),\"\",INT(C9)-INT($C$6)),\"\")","v":12},{"$f":"IFERROR(IF(Mijlpalen[[#This Row],[Begint op dag]]=0,DATEDIF(Mijlpalen[[#This Row],[Begindatum]],Mijlpalen[[#This Row],[Einddatum]],\"d\")+1,IF(LEN(Mijlpalen[[#This Row],[Begint op dag]])=0,\"\",DATEDIF(Mijlpalen[[#This Row],[Begindatum]],Mijlpalen[[#This Row],[Einddatum]],\"d\")+1)),0)","v":151}]
[null,5,{"$f":"TODAY()+15","v":"2018-08-31"},{"$f":"Mijlpalen[[#This Row],[Begindatum]]+14","v":"2018-09-14"},"Activiteit 5",{"$f":"IFERROR(IF(OR(LEN(Mijlpalen[[#This Row],[Begindatum]])=0,LEN(Mijlpalen[[#This Row],[Einddatum]])=0),\"\",INT(C10)-INT($C$6)),\"\")","v":25},{"$f":"IFERROR(IF(Mijlpalen[[#This Row],[Begint op dag]]=0,DATEDIF(Mijlpalen[[#This Row],[Begindatum]],Mijlpalen[[#This Row],[Einddatum]],\"d\")+1,IF(LEN(Mijlpalen[[#This Row],[Begint op dag]])=0,\"\",DATEDIF(Mijlpalen[[#This Row],[Begindatum]],Mijlpalen[[#This Row],[Einddatum]],\"d\")+1)),0)","v":15}]
[null,6,{"$f":"TODAY()+30","v":"2018-09-15"},{"$f":"Mijlpalen[[#This Row],[Begindatum]]+45","v":"2018-10-30"},"Activiteit 6",{"$f":"IFERROR(IF(OR(LEN(Mijlpalen[[#This Row],[Begindatum]])=0,LEN(Mijlpalen[[#This Row],[Einddatum]])=0),\"\",INT(C11)-INT($C$6)),\"\")","v":40},{"$f":"IFERROR(IF(Mijlpalen[[#This Row],[Begint op dag]]=0,DATEDIF(Mijlpalen[[#This Row],[Begindatum]],Mijlpalen[[#This Row],[Einddatum]],\"d\")+1,IF(LEN(Mijlpalen[[#This Row],[Begint op dag]])=0,\"\",DATEDIF(Mijlpalen[[#This Row],[Begindatum]],Mijlpalen[[#This Row],[Einddatum]],\"d\")+1)),0)","v":46}]
[null,7,{"$f":"TODAY()+45","v":"2018-09-30"},{"$f":"Mijlpalen[[#This Row],[Begindatum]]+56","v":"2018-11-25"},"Activiteit 7",{"$f":"IFERROR(IF(OR(LEN(Mijlpalen[[#This Row],[Begindatum]])=0,LEN(Mijlpalen[[#This Row],[Einddatum]])=0),\"\",INT(C12)-INT($C$6)),\"\")","v":55},{"$f":"IFERROR(IF(Mijlpalen[[#This Row],[Begint op dag]]=0,DATEDIF(Mijlpalen[[#This Row],[Begindatum]],Mijlpalen[[#This Row],[Einddatum]],\"d\")+1,IF(LEN(Mijlpalen[[#This Row],[Begint op dag]])=0,\"\",DATEDIF(Mijlpalen[[#This Row],[Begindatum]],Mijlpalen[[#This Row],[Einddatum]],\"d\")+1)),0)","v":57}]
[null,8,{"$f":"TODAY()+60","v":"2018-10-15"},{"$f":"Mijlpalen[[#This Row],[Begindatum]]+30","v":"2018-11-14"},"Activiteit 8",{"$f":"IFERROR(IF(OR(LEN(Mijlpalen[[#This Row],[Begindatum]])=0,LEN(Mijlpalen[[#This Row],[Einddatum]])=0),\"\",INT(C13)-INT($C$6)),\"\")","v":70},{"$f":"IFERROR(IF(Mijlpalen[[#This Row],[Begint op dag]]=0,DATEDIF(Mijlpalen[[#This Row],[Begindatum]],Mijlpalen[[#This Row],[Einddatum]],\"d\")+1,IF(LEN(Mijlpalen[[#This Row],[Begint op dag]])=0,\"\",DATEDIF(Mijlpalen[[#This Row],[Begindatum]],Mijlpalen[[#This Row],[Einddatum]],\"d\")+1)),0)","v":31}]
[null,9,{"$f":"TODAY()+37","v":"2018-09-22"},{"$f":"Mijlpalen[[#This Row],[Begindatum]]+22","v":"2018-10-14"},"Activiteit 9",{"$f":"IFERROR(IF(OR(LEN(Mijlpalen[[#This Row],[Begindatum]])=0,LEN(Mijlpalen[[#This Row],[Einddatum]])=0),\"\",INT(C14)-INT($C$6)),\"\")","v":47},{"$f":"IFERROR(IF(Mijlpalen[[#This Row],[Begint op dag]]=0,DATEDIF(Mijlpalen[[#This Row],[Begindatum]],Mijlpalen[[#This Row],[Einddatum]],\"d\")+1,IF(LEN(Mijlpalen[[#This Row],[Begint op dag]])=0,\"\",DATEDIF(Mijlpalen[[#This Row],[Begindatum]],Mijlpalen[[#This Row],[Einddatum]],\"d\")+1)),0)","v":23}]
[null,10,{"$f":"TODAY()-20","v":"2018-07-27"},{"$f":"Mijlpalen[[#This Row],[Begindatum]]+160","v":"2019-01-03"},"Activiteit 10",{"$f":"IFERROR(IF(OR(LEN(Mijlpalen[[#This Row],[Begindatum]])=0,LEN(Mijlpalen[[#This Row],[Einddatum]])=0),\"\",INT(C15)-INT($C$6)),\"\")","v":{"v":-10,"d":"-10 "}},{"$f":"IFERROR(IF(Mijlpalen[[#This Row],[Begint op dag]]=0,DATEDIF(Mijlpalen[[#This Row],[Begindatum]],Mijlpalen[[#This Row],[Einddatum]],\"d\")+1,IF(LEN(Mijlpalen[[#This Row],[Begint op dag]])=0,\"\",DATEDIF(Mijlpalen[[#This Row],[Begindatum]],Mijlpalen[[#This Row],[Einddatum]],\"d\")+1)),0)","v":161}]
[null,11,{"$f":"TODAY()+20","v":"2018-09-05"},{"$f":"Mijlpalen[[#This Row],[Begindatum]]+65","v":"2018-11-09"},"Activiteit 11",{"$f":"IFERROR(IF(OR(LEN(Mijlpalen[[#This Row],[Begindatum]])=0,LEN(Mijlpalen[[#This Row],[Einddatum]])=0),\"\",INT(C16)-INT($C$6)),\"\")","v":30},{"$f":"IFERROR(IF(Mijlpalen[[#This Row],[Begint op dag]]=0,DATEDIF(Mijlpalen[[#This Row],[Begindatum]],Mijlpalen[[#This Row],[Einddatum]],\"d\")+1,IF(LEN(Mijlpalen[[#This Row],[Begint op dag]])=0,\"\",DATEDIF(Mijlpalen[[#This Row],[Begindatum]],Mijlpalen[[#This Row],[Einddatum]],\"d\")+1)),0)","v":66}]
[null,12,{"$f":"TODAY()+70","v":"2018-10-25"},{"$f":"Mijlpalen[[#This Row],[Begindatum]]+67","v":"2018-12-31"},"Activiteit 12",{"$f":"IFERROR(IF(OR(LEN(Mijlpalen[[#This Row],[Begindatum]])=0,LEN(Mijlpalen[[#This Row],[Einddatum]])=0),\"\",INT(C17)-INT($C$6)),\"\")","v":80},{"$f":"IFERROR(IF(Mijlpalen[[#This Row],[Begint op dag]]=0,DATEDIF(Mijlpalen[[#This Row],[Begindatum]],Mijlpalen[[#This Row],[Einddatum]],\"d\")+1,IF(LEN(Mijlpalen[[#This Row],[Begint op dag]])=0,\"\",DATEDIF(Mijlpalen[[#This Row],[Begindatum]],Mijlpalen[[#This Row],[Einddatum]],\"d\")+1)),0)","v":68}]
[null,13,{"$f":"TODAY()+90","v":"2018-11-14"},{"$f":"Mijlpalen[[#This Row],[Begindatum]]+14","v":"2018-11-28"},"Activiteit 13",{"$f":"IFERROR(IF(OR(LEN(Mijlpalen[[#This Row],[Begindatum]])=0,LEN(Mijlpalen[[#This Row],[Einddatum]])=0),\"\",INT(C18)-INT($C$6)),\"\")","v":100},{"$f":"IFERROR(IF(Mijlpalen[[#This Row],[Begint op dag]]=0,DATEDIF(Mijlpalen[[#This Row],[Begindatum]],Mijlpalen[[#This Row],[Einddatum]],\"d\")+1,IF(LEN(Mijlpalen[[#This Row],[Begint op dag]])=0,\"\",DATEDIF(Mijlpalen[[#This Row],[Begindatum]],Mijlpalen[[#This Row],[Einddatum]],\"d\")+1)),0)","v":15}]
[null,14,{"$f":"TODAY()+100","v":"2018-11-24"},{"$f":"Mijlpalen[[#This Row],[Begindatum]]+3","v":"2018-11-27"},"Activiteit 14",{"$f":"IFERROR(IF(OR(LEN(Mijlpalen[[#This Row],[Begindatum]])=0,LEN(Mijlpalen[[#This Row],[Einddatum]])=0),\"\",INT(C19)-INT($C$6)),\"\")","v":110},{"$f":"IFERROR(IF(Mijlpalen[[#This Row],[Begint op dag]]=0,DATEDIF(Mijlpalen[[#This Row],[Begindatum]],Mijlpalen[[#This Row],[Einddatum]],\"d\")+1,IF(LEN(Mijlpalen[[#This Row],[Begint op dag]])=0,\"\",DATEDIF(Mijlpalen[[#This Row],[Begindatum]],Mijlpalen[[#This Row],[Einddatum]],\"d\")+1)),0)","v":4}]
[null,15,{"$f":"TODAY()+50","v":"2018-10-05"},{"$f":"Mijlpalen[[#This Row],[Begindatum]]+130","v":"2019-02-12"},"Activiteit 15",{"$f":"IFERROR(IF(OR(LEN(Mijlpalen[[#This Row],[Begindatum]])=0,LEN(Mijlpalen[[#This Row],[Einddatum]])=0),\"\",INT(C20)-INT($C$6)),\"\")","v":60},{"$f":"IFERROR(IF(Mijlpalen[[#This Row],[Begint op dag]]=0,DATEDIF(Mijlpalen[[#This Row],[Begindatum]],Mijlpalen[[#This Row],[Einddatum]],\"d\")+1,IF(LEN(Mijlpalen[[#This Row],[Begint op dag]])=0,\"\",DATEDIF(Mijlpalen[[#This Row],[Begindatum]],Mijlpalen[[#This Row],[Einddatum]],\"d\")+1)),0)","v":131}]
[{"$nulls":5},{"$f":"IFERROR(IF(OR(LEN(Mijlpalen[[#This Row],[Begindatum]])=0,LEN(Mijlpalen[[#This Row],[Einddatum]])=0),\"\",INT(C21)-INT($C$6)),\"\")","v":""},{"$f":"IFERROR(IF(Mijlpalen[[#This Row],[Begint op dag]]=0,DATEDIF(Mijlpalen[[#This Row],[Begindatum]],Mijlpalen[[#This Row],[Einddatum]],\"d\")+1,IF(LEN(Mijlpalen[[#This Row],[Begint op dag]])=0,\"\",DATEDIF(Mijlpalen[[#This Row],[Begindatum]],Mijlpalen[[#This Row],[Einddatum]],\"d\")+1)),0)","v":""}]
["Als u nog meer mijlpalen/activiteiten wilt toevoegen, voegt u boven deze lijn nieuwe rijen in.\nDit is de laatste instructie in dit werkblad.","Als u nog meer mijlpalen/activiteiten wilt toevoegen, voegt u boven deze lijn nieuwe rijen in"]

{"sheet":"Gantt-diagram","index":1,"n_rows":1,"n_cols":1,"rows_kept":1}
["Gantt-diagram met een schuifbalk staat in dit werkblad. \nSchuifbalk begint in cel B29.\nDit is de laatste instructie in dit werkblad."]

{"sheet":"Over","index":2,"n_rows":6,"n_cols":1,"rows_kept":6}
["Over deze werkmap"]
["\nVoer in het werkblad Projecttracker uw gegevens in, en scrol vervolgens door een visuele weergave van uw tijdlijn in het werkblad Gantt-diagram. \n"]
["Met de kolom Positie in het werkblad Projecttracker kunt u mijlpalen en activiteiten op aparte lijnen op de grafiek plaatsen. U kunt bijvoorbeeld twee mijlpalen/activiteiten hebben die op dezelfde dag beginnen en parallel aan elkaar lopen. Als ze dezelfde positiewaarde hadden, zouden ze elkaar overlappen in de grafiek. Geef twee unieke waarden op om ze op aparte lijnen op de grafiek te plaatsen. Probeer het maar eens!\n\nAan het eind van de grafiek ziet u wellicht markeringen waarbij geen tekst of duur op een specifieke tijdlijn is ingesteld. Terwijl de laatste mijlpaal van de grafiek af scrolt, geven deze markeringen het eind van de mijlpalen in de projecttracker aan die op de grafiek worden geplaatst. Scrol gewoon terug of naar het begin om de mijlpalen te zien die op de grafiek worden geplaatst.\n"]
["Gids voor schermlezers"]
["Er zijn 4 werkbladen in deze werkmap. \n\nProjecttracker\nGantt-diagram\nOver\nDynamische grafiekgegevens (verborgen)\n\nDe instructies voor elk werkblad staan in kolom A, beginnend in cel A1 van elk werkblad. Ze zijn geschreven met verborgen tekst. Elke stap leidt u door de informatie in die rij. Elke volgende stap gaat verder in cel A2, A3 enzovoort, tenzij uitdrukkelijk anderszins vermeld, bijvoorbeeld wanneer de instructietekst voor de volgende stap \"Ga naar cel A6\" is. \n\nVerborgen tekst wordt niet afgedrukt.\n\nAls u deze instructies van een werkblad wilt verwijderen, verwijdert u gewoon kolom A.\n"]
["Dit is de laatste instructie in dit werkblad."]

{"sheet":"Dyn. grafiekgegevens verborgen","index":3,"n_rows":10,"n_cols":6,"rows_kept":10,"hidden":true}
["De titel van dit werkblad staat in cel B1.","Dynamische grafiekgegevens"]
["De kop voor de horizontale scrolverhoging staat in cel B2.\nAls u de gegevens handmatig wilt verhogen, voert u in cel B3 een nieuwe waarde in.\nDe scrolpagina wordt automatisch bijgewerkt wanneer de schuifbalk een pagina vooruit of achteruit gaat in het werkblad Gantt-diagram.","horizontale scrolverhoging"]
["De automatisch bijgewerkte scrolwaarde van het Gantt-diagram staat in cel B3.",0]
["De tabeltitel staat in cel B4.","Tabel met dynamische gegevens"]
["Tabelkoppen staan in de cellen B5 t/m E5. \nIn cel F5 staat een notitie.\nDeze tabel kan maximaal vijf mijlpalen tegelijk op de grafiek plaatsen. \nZorg dat u dit werkblad of de inhoud ervan niet wijzigt of verwijdert.","mijlpaal","datum","Begint op dag","duur","<--plaats maximaal vijf mijlpalen tegelijk op de grafiek"]
[null,{"$f":"IFERROR(IF(LEN(OFFSET(Projecttracker!$E6,$B$3,0,1,1))=0,\"\",INDEX(Mijlpalen[],Projecttracker!$B6+$B$3,4)),\"\")","v":"Begin"},{"$f":"IFERROR(IF(LEN(OFFSET(Projecttracker!$C6,$B$3,0,1,1))=0,End_Date,INDEX(Mijlpalen[],Projecttracker!$B6+$B$3,2)),\"\")","v":"2018-08-06"},{"$f":"IFERROR(IF(LEN(OFFSET(Projecttracker!$F6,$B$3,0,1,1))=0,\"\",INDEX(Mijlpalen[],Projecttracker!$B6+$B$3,5)),\"\")","v":0},{"$f":"IFERROR(IF(LEN(OFFSET(Projecttracker!$G6,$B$3,0,1,1))=0,\"\",INDEX(Mijlpalen[],Projecttracker!$B6+$B$3,6)),\"\")","v":11}]
[null,{"$f":"IFERROR(IF(LEN(OFFSET(Projecttracker!$E7,$B$3,0,1,1))=0,\"\",INDEX(Mijlpalen[],Projecttracker!$B7+$B$3,4)),\"\")","v":"Activiteit 2"},{"$f":"IFERROR(IF(LEN(OFFSET(Projecttracker!$C7,$B$3,0,1,1))=0,End_Date,INDEX(Mijlpalen[],Projecttracker!$B7+$B$3,2)),\"\")","v":"2018-08-21"},{"$f":"IFERROR(IF(LEN(OFFSET(Projecttracker!$F7,$B$3,0,1,1))=0,\"\",INDEX(Mijlpalen[],Projecttracker!$B7+$B$3,5)),\"\")","v":15},{"$f":"IFERROR(IF(LEN(OFFSET(Projecttracker!$G7,$B$3,0,1,1))=0,\"\",INDEX(Mijlpalen[],Projecttracker!$B7+$B$3,6)),\"\")","v":16}]
[null,{"$f":"IFERROR(IF(LEN(OFFSET(Projecttracker!$E8,$B$3,0,1,1))=0,\"\",INDEX(Mijlpalen[],Projecttracker!$B8+$B$3,4)),\"\")","v":"Activiteit 3"},{"$f":"IFERROR(IF(LEN(OFFSET(Projecttracker!$C8,$B$3,0,1,1))=0,End_Date,INDEX(Mijlpalen[],Projecttracker!$B8+$B$3,2)),\"\")","v":"2018-07-17"},{"$f":"IFERROR(IF(LEN(OFFSET(Projecttracker!$F8,$B$3,0,1,1))=0,\"\",INDEX(Mijlpalen[],Projecttracker!$B8+$B$3,5)),\"\")","v":-20},{"$f":"IFERROR(IF(LEN(OFFSET(Projecttracker!$G8,$B$3,0,1,1))=0,\"\",INDEX(Mijlpalen[],Projecttracker!$B8+$B$3,6)),\"\")","v":153}]
[null,{"$f":"IFERROR(IF(LEN(OFFSET(Projecttracker!$E9,$B$3,0,1,1))=0,\"\",INDEX(Mijlpalen[],Projecttracker!$B9+$B$3,4)),\"\")","v":"Activiteit 4"},{"$f":"IFERROR(IF(LEN(OFFSET(Projecttracker!$C9,$B$3,0,1,1))=0,End_Date,INDEX(Mijlpalen[],Projecttracker!$B9+$B$3,2)),\"\")","v":"2018-08-18"},{"$f":"IFERROR(IF(LEN(OFFSET(Projecttracker!$F9,$B$3,0,1,1))=0,\"\",INDEX(Mijlpalen[],Projecttracker!$B9+$B$3,5)),\"\")","v":12},{"$f":"IFERROR(IF(LEN(OFFSET(Projecttracker!$G9,$B$3,0,1,1))=0,\"\",INDEX(Mijlpalen[],Projecttracker!$B9+$B$3,6)),\"\")","v":151}]
[null,{"$f":"IFERROR(IF(LEN(OFFSET(Projecttracker!$E10,$B$3,0,1,1))=0,\"\",INDEX(Mijlpalen[],Projecttracker!$B10+$B$3,4)),\"\")","v":"Activiteit 5"},{"$f":"IFERROR(IF(LEN(OFFSET(Projecttracker!$C10,$B$3,0,1,1))=0,End_Date,INDEX(Mijlpalen[],Projecttracker!$B10+$B$3,2)),\"\")","v":"2018-08-31"},{"$f":"IFERROR(IF(LEN(OFFSET(Projecttracker!$F10,$B$3,0,1,1))=0,\"\",INDEX(Mijlpalen[],Projecttracker!$B10+$B$3,5)),\"\")","v":25},{"$f":"IFERROR(IF(LEN(OFFSET(Projecttracker!$G10,$B$3,0,1,1))=0,\"\",INDEX(Mijlpalen[],Projecttracker!$B10+$B$3,6)),\"\")","v":15}]